bitfinex/quotes_SOLUSD_20240703
["timestamp","ask_amount","ask_price","bid_price","bid_amount"]
[1720039967070,23.1587,140.8,140.76,7.1042]
[1720039967370,16.0563,140.8,140.77,7.1036]
[1720039968251,23.1588,140.8,140.75,24.8659]
[1720039968774,23.1588,140.8,140.76,7.1042]
[1720039969661,7.1028,140.79,140.75,24.8662]
[1720039970054,7.1033,140.78,140.75,17.7617]
[1720039970256,7.1039,140.77,140.73,7.1057]
[1720039970465,7.1038,140.77,140.74,7.1052]
[1720039970763,16.0563,140.8,140.75,7.1047]
[1720039970963,7.1029,140.79,140.75,7.1047]
[1720039972771,16.0563,140.8,140.7,51.2443]
[1720039972979,27.56,140.79,140.67,42.0101]
[1720039973278,7.1044,140.76,140.72,7.106]
[1720039975063,7.1044,140.76,140.73,7.1057]
[1720039975266,7.1039,140.77,140.73,7.1057]
[1720039975657,20.0,140.76,140.73,7.1057]
[1720039975865,20.0,140.76,140.74,7.1052]
[1720039976165,20.0,140.77,140.75,7.1047]
[1720039976365,20.0,140.77,140.76,7.1042]
[1720039976976,20.0,140.77,140.75,7.1046]
[1720039977180,7.1033,140.78,140.74,24.8679]
[1720039977379,16.0563,140.8,140.73,7.1057]
[1720039977380,27.104,140.77,140.73,7.1057]
[1720039978454,7.1043,140.76,140.73,7.1057]
[1720039979783,7.1048,140.75,140.72,17.7645]
[1720039979976,7.1048,140.75,140.71,7.1064]
[1720039981694,34.3248,140.75,140.71,7.1064]
[1720039982001,15.7278,140.74,140.71,7.1064]
[1720039982370,6.658,140.75,140.72,17.7653]
[1720039982575,63.2895,140.77,140.72,17.7653]
[1720039982793,0.17,140.76,140.72,17.7653]
[1720039982976,0.17,140.76,140.73,7.1057]
[1720039983183,63.2895,140.77,140.73,7.1057]
[1720039983504,70.3933,140.77,140.73,7.1057]
[1720039984576,7.1043,140.76,140.73,7.1057]
[1720039984783,16.0695,140.77,140.74,24.8682]
[1720039984985,13.569,140.79,140.75,7.1045]
[1720039985211,7.1031,140.79,140.76,7.1042]
[1720039985382,20.0,140.78,140.76,7.1042]
[1720039985575,16.0695,140.8,140.77,7.1036]
[1720039987890,16.0695,140.8,140.72,15.3665]
[1720039988087,6.4659,140.83,140.72,15.3665]
[1720039988292,6.4659,140.83,140.73,35.8668]
[1720039988597,49.99492046,140.84,140.8,7.102]
[1720039988598,22.7659,140.84,140.8,7.102]
[1720039988985,7.1007,140.83,140.79,7.1025]
[1720039989487,15.6654,140.84,140.78,17.7577]
[1720039989794,7.1007,140.83,140.79,7.1024]
[1720039989981,7.10952046,140.88,140.78,37.6936]
[1720039990305,6.041,140.91,140.84,17.7502]
[1720039990606,7.0983,140.88,140.84,17.7502]
[1720039991479,7.0983,140.88,140.84,24.8502]
[1720039991695,7.0978,140.89,140.85,7.0995]
[1720039992016,33.261,140.91,140.84,17.7502]
[1720039992017,7.0976,140.9,140.84,17.7502]
[1720039992378,27.0977,140.89,140.85,7.0994]
[1720039992682,7.099,140.87,140.82,7.1008]
[1720039992884,7.099,140.87,140.83,7.1005]
[1720039993083,7.0983,140.88,140.84,7.1002]
[1720039993306,7.0987,140.87,140.83,7.1007]
[1720039993801,7.0984,140.88,140.83,7.1007]
[1720039994008,20.0,140.87,140.83,7.1007]
[1720039994192,20.0,140.87,140.81,24.8552]
[1720039994387,7.0987,140.87,140.83,7.1007]
[1720039994610,7.0987,140.87,140.82,7.101]
[1720039995121,7.0987,140.87,140.83,7.1006]
[1720039995604,7.0983,140.88,140.84,7.1002]
[1720039995986,20.0,140.87,140.84,7.1002]
[1720039996188,20.0,140.87,140.85,7.0995]
[1720039996415,34.3179,140.89,140.85,7.0995]
[1720039996619,27.0982,140.88,140.84,7.1001]
[1720039997333,20.0,140.88,140.85,7.0996]
[1720039997537,20.0,140.88,140.86,7.0992]
[1720039997734,7.0973,140.9,140.86,7.0992]
[1720039997909,27.0978,140.89,140.85,24.8487]
[1720039998109,7.0983,140.88,140.85,17.7492]
[1720039998307,27.22,140.89,140.82,17.7522]
[1720039998612,20.0,140.88,140.82,17.7522]
[1720039999043,20.0,140.87,140.84,7.0999]
[1720039999353,20.0,140.87,140.86,7.0992]
[1720039999630,68.60292046,140.93,140.87,7.0982]
[1720039999631,7.0967,140.92,140.87,7.0982]
[1720039999840,23.64262046,140.93,140.88,17.7454]
[1720039999841,7.0967,140.91,140.88,17.7454]
[1720040000047,7.0967,140.91,140.87,7.0982]
[1720040000813,20.0,140.9,140.87,7.0982]
[1720040002530,20.0,140.9,140.85,17.7481]
[1720040002732,7.0981,140.89,140.85,17.7481]
[1720040003029,7.0981,140.89,140.85,24.8478]
[1720040006147,27.22,140.91,140.79,84.4321]
[1720040006148,7.0983,140.88,140.84,7.1001]
[1720040006312,7.0988,140.87,140.83,7.1004]
[1720040008348,7.0984,140.88,140.84,7.1002]
[1720040008717,7.0979,140.89,140.85,7.0997]
[1720040009116,20.0,140.88,140.85,7.0997]
[1720040010014,20.0,140.88,140.86,7.0991]
[1720040010212,7.0973,140.9,140.86,7.0991]
[1720040010521,20.0,140.89,140.88,7.0982]
[1720040010824,20.0,140.89,140.86,17.7478]
[1720040011050,20.0,140.89,140.82,35.5046]
[1720040011346,7.0982,140.88,140.85,17.7491]
[1720040011563,20.0,140.87,140.85,17.7491]
[1720040011777,7.0981,140.89,140.85,17.7491]
[1720040011936,27.22,140.9,140.85,17.7491]
[1720040012255,20.0,140.88,140.87,24.8451]
[1720040012556,20.0,140.9,140.87,17.7468]
[1720040012764,6.1751,140.94,140.88,7.0979]
[1720040012950,16.5331,140.93,140.87,17.7468]
[1720040013154,7.0958,140.93,140.89,24.8415]
[1720040014055,7.0962,140.92,140.89,17.7443]
[1720040014251,13.54369741,140.99,140.89,6.512]
[1720040014466,0.8370206,140.99,140.9,15.6005]
[1720040014653,0.8370206,140.99,140.95,7.0945]
[1720040014844,0.8370206,140.99,140.96,7.094]
[1720040015268,0.8370206,140.99,140.97,7.0936]
[1720040015889,0.8370206,140.99,140.95,17.7364]
[1720040016170,0.8370206,140.99,140.97,24.8272]
[1720040016341,0.8370206,140.99,140.97,17.7338]
[1720040016664,0.8370206,140.99,140.96,7.0941]
[1720040016665,0.8370206,140.99,140.95,7.0945]
[1720040017045,0.8370206,140.99,140.96,7.0941]
[1720040017663,0.8370206,140.99,140.95,7.0946]
[1720040018241,0.8370206,140.99,140.96,7.094]
[1720040018551,0.8370206,140.99,140.95,7.0945]
[1720040018956,0.8370206,140.99,140.96,17.7349]
[1720040019465,0.8370206,140.99,140.98,7.0932]
[1720040019967,0.8370206,140.99,140.97,7.0936]
[1720040020265,0.8370206,140.99,140.98,7.0932]
[1720040024356,0.8370206,140.99,140.98,7.2632]
[1720040024558,0.8370206,140.99,140.98,7.4332]
[1720040026644,0.8370206,140.99,140.98,7.0932]
[1720040028366,0.8370206,140.99,140.97,7.0935]
[1720040028558,0.8370206,140.99,140.98,7.0932]
[1720040030167,0.8370206,140.99,140.96,17.7349]
[1720040030386,0.8370206,140.99,140.98,7.0932]
[1720040032380,2.06e-05,140.99,140.98,7.4332]
[1720040034653,2.06e-05,140.99,140.98,28.7932]
[1720040035259,2.06e-05,140.99,140.98,44.0752]
[1720040036159,2.06e-05,140.99,140.98,50.418]
[1720040036474,22.7932,141.12,141.07,17.7213]
[1720040036861,29.8795,141.12,141.08,7.088]
[1720040037459,20.0,141.11,141.08,7.088]
[1720040037666,20.0,141.11,141.07,17.7213]
[1720040037867,7.0871,141.1,141.07,17.7213]
[1720040038188,20.0,141.11,141.07,24.8096]
[1720040039177,20.0,141.11,141.08,7.0881]
[1720040039481,27.0866,141.11,141.07,24.8098]
[1720040039973,16.3482,141.12,141.11,7.0866]
[1720040041258,0.8370206,141.13,141.12,7.0861]
[1720040041490,0.8370206,141.13,141.11,17.7158]
[1720040042294,0.8370206,141.13,141.11,24.8023]
[1720040042598,0.8370206,141.13,141.11,17.7158]
[1720040042801,0.8370206,141.13,141.08,17.7199]
[1720040043094,0.8370206,141.13,141.1,7.0868]
[1720040043299,0.8370206,141.13,141.11,7.0865]
[1720040043974,0.8370206,141.13,141.1,24.8048]
[1720040044886,0.8370206,141.13,141.11,7.0866]
[1720040045073,0.8370206,141.13,141.12,7.0861]
[1720040046386,0.8370206,141.13,141.11,7.0864]
[1720040046789,0.8370206,141.13,141.1,17.7178]
[1720040047199,0.8370206,141.13,141.11,7.0865]
[1720040047790,7.4263,141.12,141.03,35.4509]
[1720040048102,35.6698,141.11,141.07,17.7214]
[1720040048400,0.8370206,141.13,141.12,7.0861]
[1720040048897,0.8370206,141.13,141.11,17.7166]
[1720040049706,0.8370206,141.13,141.11,24.803]
[1720040050197,0.8370206,141.13,141.11,17.7166]
[1720040050806,0.8370206,141.13,141.1,7.0869]
[1720040051011,0.8370206,141.13,141.11,7.0865]
[1720040052009,0.8370206,141.13,141.1,7.0869]
[1720040052913,0.8370206,141.13,141.11,7.0866]
[1720040054217,0.8370206,141.13,141.1,7.0869]
[1720040054583,7.0862,141.12,141.09,17.7191]
[1720040054911,7.9228206,141.13,141.09,24.8067]
[1720040056519,0.8370206,141.13,141.1,7.0868]
[1720040056715,0.8370206,141.13,141.1,7.087]
[1720040057085,0.8370206,141.13,141.12,7.0861]
[1720040057285,0.8370206,141.13,141.11,24.8025]
[1720040058915,0.8370206,141.13,141.12,7.0861]
[1720040060498,0.8370206,141.13,141.11,24.8026]
[1720040060827,0.8370206,141.13,141.11,17.716]
[1720040061040,0.8370206,141.13,141.11,24.8026]
[1720040062519,0.8370206,141.13,141.08,17.7194]
[1720040062821,7.9231206,141.13,141.09,7.0875]
[1720040066805,0.8370206,141.13,141.1,7.0871]
[1720040067908,7.9227206,141.13,141.09,7.0874]
[1720040068214,7.0864,141.12,141.08,24.8073]
[1720040068430,7.0867,141.11,141.08,17.7194]
[1720040068609,7.0867,141.11,141.07,7.0885]
[1720040069530,0.34,141.12,141.08,17.72]
[1720040070228,0.34,141.12,141.09,7.0875]
[1720040070808,0.34,141.12,141.08,17.72]
[1720040070809,7.4261,141.12,141.08,24.8079]
[1720040071518,0.34,141.12,141.09,7.0876]
[1720040071721,0.8370206,141.13,141.1,7.0869]
[1720040071925,0.8370206,141.13,141.08,17.72]
[1720040072341,0.8370206,141.13,141.1,7.0871]
[1720040072534,0.8370206,141.13,141.1,17.7179]
[1720040072851,0.8370206,141.13,141.1,24.8048]
[1720040073039,0.8370206,141.13,141.1,17.7179]
[1720040073433,0.8370206,141.13,141.1,24.8045]
[1720040077619,7.9226206,141.13,141.1,17.7179]
[1720040080152,7.9227206,141.13,141.1,17.7179]
[1720040081027,7.9228206,141.13,141.09,7.0873]
[1720040081849,13.53,141.1,141.08,17.7192]
[1720040082167,13.53,141.1,141.09,7.0876]
[1720040085454,0.8370206,141.13,141.1,7.0871]
[1720040085648,13.53,141.11,141.1,7.0871]
[1720040089466,0.8370206,141.13,141.1,24.805]
[1720040089652,13.53,141.12,141.11,7.0863]
[1720040090072,0.8370206,141.13,141.12,7.0861]
[1720040090441,0.8370206,141.13,141.12,24.8015]
[1720040090642,14.3670206,141.13,141.12,24.8015]
[1720040091571,16.3687,141.12,141.01,7.0915]
[1720040091773,13.53,141.04,141.02,7.0907]
[1720040091987,13.53,141.04,141.02,24.8186]
[1720040092483,13.53,141.04,141.03,7.0906]
[1720040093473,13.53,141.04,140.99,17.7308]
[1720040093760,13.53,141.01,141.0,7.0921]
[1720040095587,33.53,141.01,140.97,7.38313248]
[1720040095879,47.12,141.01,140.98,17.7325]
[1720040096101,47.12,141.01,140.98,24.8254]
[1720040096258,47.12,141.01,140.99,7.0924]
[1720040096977,54.2117,141.01,140.97,7.0936]
[1720040097183,47.12,141.01,140.94,15.2305]
[1720040098385,54.212,141.01,140.97,17.734]
[1720040099066,54.212,141.01,140.97,24.8274]
[1720040099385,7.0943,140.96,140.93,7.119]
[1720040099681,22.4092,140.99,140.86,286.1956]
[1720040099682,20.0,140.95,140.9,24.8389]
[1720040099890,7.0948,140.95,140.9,24.8389]
[1720040100086,7.0952,140.94,140.9,17.7419]
[1720040100382,7.0949,140.95,140.9,17.7419]
[1720040100685,7.0948,140.95,140.91,7.0963]
[1720040100887,27.12,140.97,140.89,7.0972]
[1720040101091,7.0954,140.94,140.9,7.0972]
[1720040101663,7.0948,140.95,140.9,7.0972]
[1720040101877,7.0948,140.95,140.91,7.0966]
[1720040102075,7.0958,140.93,140.89,17.7441]
[1720040102286,7.0963,140.92,140.88,7.098]
[1720040102488,7.0957,140.93,140.89,7.0976]
[1720040103075,43.6562,140.93,140.85,7.38750773]
[1720040103282,7.0974,140.9,140.85,17.7484]
[1720040104003,7.0978,140.89,140.85,24.848]
[1720040104312,7.0973,140.9,140.86,7.0992]
[1720040104484,34.2169,140.91,140.86,7.0992]
[1720040105395,34.2169,140.91,140.85,17.7484]
[1720040105396,34.2169,140.91,140.87,7.0987]
[1720040105702,7.0964,140.92,140.87,7.0987]
[1720040106087,20.0,140.91,140.87,7.0987]
[1720040106277,27.0968,140.91,140.87,7.0987]
[1720040107201,27.0968,140.91,140.86,7.0991]
[1720040107498,7.0977,140.89,140.85,24.848]
[1720040107884,7.0974,140.9,140.85,24.848]
[1720040108194,7.0974,140.9,140.86,7.0991]
[1720040108380,54.2168,140.91,140.86,7.0991]
[1720040109580,54.2168,140.91,140.87,17.7465]
[1720040109581,20.0,140.91,140.87,17.7465]
[1720040109783,34.216,140.93,140.89,7.0976]
[1720040109977,20.0,140.92,140.89,7.0976]
[1720040110516,27.0963,140.92,140.88,7.098]
[1720040111078,7.0967,140.91,140.87,24.8451]
[1720040111278,20.0,140.92,140.87,17.7465]
[1720040111504,44.8598,140.93,140.84,53.2489]
[1720040112001,20.0,140.92,140.84,53.2489]
[1720040112380,20.0,140.92,140.86,17.7476]
[1720040113195,7.0967,140.91,140.87,7.0986]
[1720040113390,7.0967,140.91,140.84,35.4993]
[1720040113391,7.0979,140.89,140.84,7.0997]
[1720040113584,7.0979,140.89,140.85,7.0994]
[1720040113998,7.0974,140.9,140.85,24.8486]
[1720040114197,7.0977,140.89,140.85,24.8486]
[1720040115881,34.2169,140.91,140.85,17.7492]
[1720040116106,27.12,140.91,140.85,17.7492]
[1720040116405,20.0,140.92,140.82,16.5645]
[1720040116406,44.8652,140.89,140.82,16.5645]
[1720040116615,44.8652,140.89,140.82,23.6657]
[1720040116818,7.0988,140.87,140.82,23.6657]
[1720040117217,7.0992,140.86,140.81,17.7534]
[1720040117421,7.0998,140.85,140.81,17.7534]
[1720040118317,27.12,140.86,140.78,17.758]
[1720040118622,34.2208,140.83,140.78,24.8611]
[1720040118922,27.12,140.83,140.79,7.1027]
[1720040119126,27.12,140.84,140.78,17.758]
[1720040119411,27.12,140.84,140.73,21.8734]
[1720040119621,20.0,140.83,140.73,29.26452751]
[1720040120207,20.0,140.83,140.76,17.7598]
[1720040120515,34.2216,140.82,140.77,7.1037]
[1720040121325,27.12,140.82,140.76,17.7598]
[1720040121508,20.0,140.83,140.76,17.7598]
[1720040121819,20.0,140.83,140.79,7.1026]
[1720040123221,7.1012,140.82,140.77,7.1036]
[1720040123398,37.753,140.83,140.73,7.39112751]
[1720040123603,7.1041,140.77,140.73,7.39112751]
[1720040123817,7.1041,140.77,140.71,17.7661]
[1720040124011,20.0,140.76,140.73,7.1057]
[1720040124318,34.2243,140.76,140.71,17.7661]
[1720040124524,7.1049,140.75,140.71,17.7661]
[1720040124709,7.1049,140.75,140.7,7.1072]
[1720040125019,34.2243,140.76,140.71,7.1066]
[1720040125725,34.2243,140.76,140.7,24.8746]
[1720040125921,7.1038,140.77,140.71,7.1065]
[1720040126095,34.2238,140.77,140.72,7.1061]
[1720040126302,15.3884,140.78,140.67,17.7718]
[1720040126303,27.12,140.74,140.67,17.7718]
[1720040126504,20.0,140.73,140.67,17.7718]
[1720040126910,27.12,140.72,140.67,24.8805]
[1720040127120,27.12,140.72,140.67,17.7718]
[1720040127303,27.12,140.72,140.69,7.1073]
[1720040128127,20.0,140.73,140.69,7.1073]
[1720040128703,20.0,140.73,140.71,7.1066]
[1720040128903,27.12,140.77,140.69,17.7686]
[1720040129114,7.1044,140.76,140.71,7.1066]
[1720040129824,7.1048,140.75,140.7,7.1072]
[1720040130924,7.1043,140.76,140.71,7.1067]
[1720040131133,7.1043,140.76,140.72,7.1063]
[1720040131429,20.0,140.75,140.72,7.1063]
[1720040131633,20.0,140.75,140.71,7.1068]
[1720040132537,7.102,140.81,140.77,7.1037]
[1720040132714,15.3059,140.82,140.78,7.1032]
[1720040132912,34.2211,140.83,140.78,7.1032]
[1720040133310,27.12,140.83,140.75,17.7613]
[1720040133534,27.12,140.83,140.76,7.1042]
[1720040133535,7.1022,140.81,140.76,7.1042]
[1720040134519,7.1022,140.81,140.77,7.1037]
[1720040134843,7.1022,140.81,140.76,7.1042]
[1720040135137,7.1023,140.8,140.75,24.8659]
[1720040135521,27.12,140.81,140.72,17.7657]
[1720040135710,7.104,140.77,140.72,17.7657]
[1720040135915,34.224,140.77,140.72,17.7657]
[1720040136229,27.12,140.77,140.72,17.7657]
[1720040136436,7.1044,140.76,140.7,7.1069]
[1720040136747,7.1044,140.76,140.68,17.7696]
[1720040137120,34.2238,140.77,140.71,7.1067]
[1720040137447,20.0,140.76,140.71,7.1067]
[1720040137735,20.0,140.76,140.72,7.1061]
[1720040138849,20.0,140.76,140.71,7.1066]
[1720040139144,20.0,140.76,140.67,39.3476]
[1720040139450,23.0657,140.78,140.67,17.7712]
[1720040139741,20.0,140.75,140.67,17.7712]
[1720040140146,7.1049,140.75,140.69,7.1074]
[1720040140348,0.34,140.77,140.66,7.109]
[1720040140349,15.8821,140.74,140.66,7.109]
[1720040140641,7.1072,140.71,140.65,7.1094]
[1720040141143,20.0,140.7,140.65,7.1094]
[1720040141340,20.0,140.7,140.66,7.1093]
[1720040142125,20.0,140.7,140.65,7.1096]
[1720040142347,27.1073,140.7,140.64,17.7752]
[1720040142647,7.1079,140.69,140.64,24.8853]
[1720040142946,27.1073,140.7,140.64,17.7752]
[1720040143154,27.1073,140.7,140.65,7.1095]
[1720040144448,20.0,140.7,140.65,7.1095]
[1720040145154,20.0,140.7,140.66,7.1092]
[1720040146665,7.1084,140.68,140.64,17.7752]
[1720040147361,7.1078,140.69,140.64,24.8853]
[1720040149045,20.0,140.7,140.64,24.8853]
[1720040149046,27.1073,140.7,140.66,7.1093]
[1720040149246,27.1073,140.7,140.65,7.1096]
[1720040149762,20.0,140.7,140.66,7.1089]
[1720040149956,7.1094,140.66,140.63,0.8370206]
[1720040150142,7.109,140.67,140.63,0.8370206]
[1720040150337,27.1093,140.66,140.63,0.8370206]
[1720040150853,20.0,140.66,140.63,0.8370206]
[1720040151339,27.1093,140.66,140.63,0.8370206]
[1720040152059,20.0,140.66,140.63,0.8370206]
[1720040153659,20.0,140.65,140.63,0.8370206]
[1720040153843,7.1099,140.65,140.63,0.8370206]
[1720040154048,20.0,140.64,140.63,0.8370206]
[1720040157246,27.1103,140.64,140.63,0.8370206]
[1720040157560,20.0,140.64,140.63,0.8370206]
[1720040160869,33.33,140.68,140.63,0.8370206]
[1720040161045,7.1083,140.68,140.63,0.8370206]
[1720040161250,22.6172,140.69,140.63,0.8370206]
[1720040161550,22.6172,140.69,140.64,7.1102]
[1720040162454,33.5437,140.71,140.64,7.1102]
[1720040162455,7.1074,140.7,140.66,7.109]
[1720040162669,7.1074,140.7,140.65,7.1096]
[1720040162870,7.107,140.71,140.66,17.7729]
[1720040163067,16.5516,140.72,140.63,0.8370206]
[1720040163276,7.1069,140.71,140.66,7.1093]
[1720040163655,7.1069,140.71,140.65,17.7744]
[1720040163863,7.1069,140.71,140.67,7.1088]
[1720040164064,16.5516,140.72,140.64,0.34]
[1720040164367,16.5516,140.72,140.64,17.945]
[1720040164692,7.1084,140.68,140.63,7.9477206]
[1720040164976,7.1088,140.67,140.63,0.8370206]
[1720040165191,7.1084,140.68,140.63,7.9476206]
[1720040165368,45.0177,140.71,140.63,18.6137206]
[1720040165369,27.25,140.71,140.63,18.6137206]
[1720040165568,7.1079,140.69,140.64,7.11]
[1720040165771,20.0,140.7,140.64,7.11]
[1720040165973,20.0,140.7,140.63,25.7244206]
[1720040165974,7.1087,140.68,140.63,25.7244206]
[1720040166283,7.1086,140.68,140.63,25.7242206]
[1720040166473,20.0,140.7,140.63,0.8370206]
[1720040166777,7.1095,140.66,140.63,0.8370206]
[1720040167573,7.1089,140.67,140.63,0.8370206]
[1720040168080,7.1103,140.64,140.63,0.8370206]
[1720040168280,7.11,140.65,140.63,0.8370206]
[1720040168594,51.6361,140.68,140.63,0.8370206]
[1720040168595,7.1095,140.66,140.63,0.8370206]
[1720040168961,7.11,140.65,140.63,0.8370206]
[1720040169379,7.1095,140.66,140.63,0.8370206]
[1720040169763,7.1088,140.67,140.63,0.8370206]
[1720040169969,20.0,140.66,140.63,7.9477206]
[1720040170393,20.0,140.66,140.63,0.8370206]
[1720040171081,20.0,140.66,140.65,7.1098]
[1720040171293,20.0,140.66,140.64,17.7758]
[1720040171464,20.0,140.67,140.64,24.886]
[1720040172096,20.0,140.67,140.65,7.1095]
[1720040172389,7.1081,140.69,140.64,24.8861]
[1720040172598,20.0,140.68,140.64,24.8861]
[1720040172963,20.0,140.68,140.65,7.1097]
[1720040173364,27.1083,140.68,140.64,17.7758]
[1720040173799,27.1083,140.68,140.63,0.8370206]
[1720040173800,7.1094,140.66,140.63,0.8370206]
[1720040174664,7.109,140.67,140.63,0.8370206]
[1720040175089,20.0,140.66,140.63,0.8370206]
[1720040175299,7.11,140.65,140.63,0.8370206]
[1720040175601,20.0,140.64,140.63,0.8370206]
[1720040176688,27.1103,140.64,140.63,0.8370206]
[1720040177209,20.0,140.64,140.63,0.8370206]
[1720040177585,54.3603,140.64,140.63,0.8370206]
[1720040177889,54.3603,140.64,140.61,0.04214086]
[1720040177890,7.1113,140.62,140.61,0.04214086]
[1720040178085,21.417,140.62,140.5,50.0]
[1720040178296,27.25,140.56,140.51,17.7917]
[1720040178496,15.2133,140.55,140.51,24.9085]
[1720040178697,33.4537,140.54,140.5,57.1172]
[1720040178870,20.0,140.53,140.52,7.1164]
[1720040179078,13.3172,140.58,140.53,7.1157]
[1720040179284,27.59,140.57,140.51,17.7913]
[1720040179586,27.1148,140.56,140.51,17.7913]
[1720040179777,7.1152,140.55,140.5,57.1172]
[1720040179980,27.1145,140.56,140.51,7.1168]
[1720040180175,20.0,140.56,140.51,7.1168]
[1720040180380,27.1147,140.56,140.51,7.1168]
[1720040180605,20.0,140.56,140.52,7.1163]
[1720040180822,27.1145,140.56,140.51,7.1167]
[1720040180973,20.0,140.56,140.51,7.1167]
[1720040181175,20.0,140.56,140.52,24.907]
[1720040181381,20.0,140.56,140.52,17.7906]
[1720040181582,20.0,140.56,140.5,50.0]
[1720040181583,27.1145,140.56,140.5,50.0]
[1720040181775,27.25,140.55,140.5,50.0]
[1720040182086,20.0,140.54,140.5,50.0]
[1720040182281,27.25,140.52,140.5,50.0]
[1720040182884,34.3666,140.52,140.5,50.0]
[1720040183301,22.7583,140.51,140.5,50.0]
[1720040183525,49.8752,140.51,140.5,50.0]
[1720040183687,50.0452,140.51,140.5,50.0]
[1720040183888,50.2152,140.51,140.5,33.3334]
[1720040184084,50.2152,140.51,140.5,16.6668]
[1720040184286,70.3483,140.51,140.38,17.8081]
[1720040184607,7.122,140.41,140.35,0.8370206]
[1720040184820,27.25,140.43,140.37,7.1237]
[1720040185004,20.0,140.42,140.39,7.123]
[1720040185390,20.0,140.42,140.37,7.1236]
[1720040185593,20.0,140.41,140.38,7.1234]
[1720040185811,7.1212,140.43,140.37,7.1238]
[1720040186114,30.76,140.49,140.39,17.8074]
[1720040186115,20.0,140.42,140.39,17.8074]
[1720040186292,30.76,140.49,140.39,17.8074]
[1720040186492,20.34,140.48,140.39,17.8074]
[1720040186801,7.1199,140.45,140.39,24.9303]
[1720040187109,20.0,140.44,140.39,24.9303]
[1720040187431,0.17,140.43,140.36,17.8111]
[1720040187708,20.0,140.45,140.36,17.8111]
[1720040187890,7.1203,140.45,140.39,7.1229]
[1720040188097,20.0,140.44,140.38,17.8075]
[1720040188293,0.17,140.48,140.38,24.9305]
[1720040188604,20.30473026,140.48,140.38,17.8075]
[1720040188823,20.30473026,140.48,140.38,24.9308]
[1720040189307,38.10183026,140.48,140.35,0.8370206]
[1720040189512,3.15710987,140.47,140.35,0.8370206]
[1720040189689,7.1221,140.41,140.35,7.9618206]
[1720040190011,20.0,140.4,140.37,7.1239]
[1720040190486,20.0,140.42,140.38,7.1233]
[1720040191213,16.1581,140.41,140.35,0.8370206]
[1720040191394,0.17,140.4,140.35,0.8370206]
[1720040191724,20.17,140.4,140.35,0.8370206]
[1720040191882,27.1229,140.4,140.35,0.8370206]
[1720040192207,7.123,140.39,140.35,0.8370206]
[1720040192412,7.1245,140.36,140.35,0.8370206]
[1720040192791,34.3043,140.41,140.35,0.8370206]
[1720040193107,7.1245,140.36,140.35,0.8370206]
[1720040193611,27.1245,140.36,140.35,0.8370206]
[1720040193815,20.0,140.36,140.35,0.8370206]
[1720040194192,27.1245,140.36,140.35,0.8370206]
[1720040194389,33.55,140.36,140.35,0.8370206]
[1720040194902,26.2555,140.36,140.35,0.8370206]
[1720040195106,33.38,140.36,140.35,0.8370206]
[1720040195307,33.72,140.36,140.35,0.8370206]
[1720040195609,7.128,140.29,140.28,7.42612634]
[1720040195789,17.8189,140.3,140.21,7.9689206]
[1720040196118,20.0,140.29,140.24,17.8265]
[1720040196319,15.3446,140.35,140.27,7.1288]
[1720040196611,20.0,140.34,140.21,0.3370206]
[1720040196792,0.17,140.35,140.23,6.1666]
[1720040196988,7.1235,140.38,140.31,7.127]